bitfinex/quotes_ETHUSD_20241203
["timestamp","ask_amount","ask_price","bid_price","bid_amount"]
[1733238000065,2.78862,3586.0,3585.7,0.18548839]
[1733238000268,1.18682138,3586.2,3585.7,0.18548839]
[1733238000635,2.78893,3585.6,3585.4,0.18548839]
[1733238000827,2.78855,3586.1,3585.6,0.18548839]
[1733238001130,3.0,3585.8,3585.0,0.18548839]
[1733238001472,2.78932,3585.1,3585.0,1.5072]
[1733238001649,2.78954,3584.9,3584.4,0.18548839]
[1733238001860,2.78933,3585.1,3584.4,0.18548839]
[1733238002022,2.78933,3585.1,3584.2,1.6116]
[1733238002023,3.06144888,3585.3,3584.7,0.18548839]
[1733238002223,1.5272,3585.6,3583.9,2.79023]
[1733238002224,0.55430037,3584.8,3584.0,0.18548839]
[1733238002433,2.78998,3584.3,3584.0,0.18548839]
[1733238002942,2.78986,3584.4,3584.0,0.18548839]
[1733238003145,3.06144888,3584.5,3584.0,0.18548839]
[1733238003445,3.06144888,3584.5,3583.4,1.83808839]
[1733238003629,3.06144888,3584.1,3583.6,0.18548839]
[1733238003830,1.5765,3584.0,3583.2,0.18548839]
[1733238004063,3.88251219,3583.7,3583.2,0.18548839]
[1733238004225,3.88251219,3584.1,3583.5,0.18548839]
[1733238004428,2.90461523,3584.6,3584.1,0.18548839]
[1733238004734,2.90852333,3585.1,3584.3,0.18548839]
[1733238004935,3.44586983,3585.2,3584.8,1.6497]
[1733238005172,2.32291909,3585.6,3584.8,1.6497]
[1733238005173,2.78893,3585.6,3585.5,1.23022692]
[1733238005378,2.04954053,3585.7,3585.3,0.18548839]
[1733238005661,5.78885331,3585.8,3585.5,0.18548839]
[1733238005662,0.14544135,3585.8,3585.5,0.18548839]
[1733238005861,0.14544135,3585.8,3583.9,0.59502164]
[1733238005862,0.14544135,3585.8,3585.7,1.76958839]
[1733238006059,2.91295147,3586.1,3585.7,1.76958839]
[1733238006249,0.14541103,3586.2,3585.9,0.18548839]
[1733238006465,0.14541103,3586.2,3586.1,0.18548839]
[1733238006831,0.14541103,3586.2,3585.9,0.18548839]
[1733238007056,0.88347994,3586.2,3585.9,0.18548839]
[1733238007268,0.14541103,3586.2,3586.1,0.18548839]
[1733238007459,3.88251219,3586.7,3586.4,0.18548839]
[1733238008175,3.88251219,3586.7,3586.2,0.18548839]
[1733238008381,3.88251219,3586.3,3586.2,0.18548839]
[1733238008564,3.88251219,3586.7,3586.2,0.18548839]
[1733238008876,0.5470671,3586.8,3586.2,0.18548839]
[1733238008877,3.88251219,3586.3,3586.2,0.18548839]
[1733238009077,3.88251219,3586.3,3585.7,1.5841]
[1733238009078,3.88251219,3586.3,3585.9,0.18548839]
[1733238009229,6.67113219,3586.0,3585.9,0.18548839]
[1733238009433,3.88251219,3586.0,3585.5,0.18548839]
[1733238009676,2.78848,3586.2,3585.8,0.18548839]
[1733238009880,0.82715922,3586.2,3585.8,0.18548839]
[1733238010087,3.61568922,3586.2,3585.8,0.18548839]
[1733238010283,3.88251219,3586.0,3585.8,0.18548839]
[1733238010489,2.78885,3585.8,3585.6,0.18548839]
[1733238010639,3.88251219,3586.0,3585.6,0.18548839]
[1733238010984,1.02228157,3585.9,3585.6,0.18548839]
[1733238011283,2.78843,3586.3,3585.6,0.18548839]
[1733238011582,2.78846,3586.3,3585.8,0.18548839]
[1733238011792,0.45749703,3586.6,3586.2,1.71398839]
[1733238011938,1.624,3587.3,3586.4,0.18548839]
[1733238012138,0.54763307,3586.8,3586.2,1.71398839]
[1733238012441,0.54763307,3586.8,3585.8,1.69698839]
[1733238012671,0.54763307,3586.8,3586.3,0.18548839]
[1733238012872,0.54763307,3586.8,3586.0,0.18548839]
[1733238013185,0.26049099,3586.8,3586.7,0.18548839]
[1733238013350,2.78832,3586.4,3586.0,0.18548839]
[1733238013552,1.512,3586.5,3585.5,0.18548839]
[1733238013751,3.88251219,3585.8,3585.1,0.18548839]
[1733238014184,6.67132219,3585.8,3585.1,0.18548839]
[1733238014385,0.92770577,3585.7,3585.1,0.18548839]
[1733238014585,2.78895,3585.6,3585.1,0.18548839]
[1733238014944,0.66713222,3585.7,3585.1,0.18548839]
[1733238015359,0.66713222,3585.7,3585.3,0.18548839]
[1733238015557,2.78862,3586.0,3585.3,0.18548839]
[1733238015743,2.91012177,3586.3,3585.6,0.18548839]
[1733238015966,0.26057673,3586.2,3585.6,0.18548839]
[1733238016150,1.16408998,3586.5,3585.6,0.18548839]
[1733238016151,0.26057673,3586.5,3585.6,0.18548839]
[1733238016589,3.35037814,3586.1,3585.6,0.18548839]
[1733238016896,0.72328903,3586.0,3585.6,0.18548839]
[1733238017059,3.88251219,3586.6,3585.6,0.18548839]
[1733238017467,0.55865015,3586.0,3585.3,0.18548839]
[1733238017662,0.55865015,3586.0,3585.7,0.18548839]
[1733238018293,0.55865015,3586.0,3585.1,0.18548839]
[1733238018461,0.74411623,3585.9,3585.1,0.18548839]
[1733238018881,1.5298,3585.7,3585.0,1.5179]
[1733238019095,3.88251219,3585.4,3584.6,0.18548839]
[1733238019282,3.88251219,3585.0,3584.6,0.18548839]
[1733238019611,2.78957,3584.8,3584.4,0.53295531]
[1733238019776,3.88251219,3585.0,3584.4,0.53295531]
[1733238019777,0.66720822,3584.7,3584.4,0.53295531]
[1733238020165,1.22055067,3584.7,3584.4,0.53295531]
[1733238021462,3.0,3584.5,3584.4,0.53295531]
[1733238021909,6.67223219,3584.6,3584.4,0.53295531]
[1733238022222,3.0,3584.5,3584.4,0.53295531]
[1733238022505,4.08927829,3584.5,3584.4,0.53295531]
[1733238022914,1.08927829,3584.5,3584.4,0.53295531]
[1733238023203,0.55334245,3584.7,3584.4,0.53295531]
[1733238023610,0.1453769,3584.6,3584.4,0.53295531]
[1733238024178,2.9350969,3584.6,3584.4,0.53295531]
[1733238024711,6.88251219,3584.5,3584.4,0.53295531]
[1733238025019,7.84634212,3584.5,3584.4,0.53295531]
[1733238025318,4.42449032,3584.5,3584.4,0.53295531]
[1733238026329,3.0,3584.5,3583.7,0.18548839]
[1733238026537,3.0,3584.4,3583.7,0.18548839]
[1733238026676,0.1453769,3584.6,3584.4,1.5929]
[1733238027021,0.55215854,3585.3,3584.7,0.18548839]
[1733238027222,1.16408998,3585.2,3584.6,0.18548839]
[1733238027531,2.78951,3584.9,3584.4,1.5929]
[1733238027732,3.75375607,3584.8,3584.2,0.18548839]
[1733238027927,3.75375607,3584.8,3583.9,1.545]
[1733238027928,3.75371607,3584.8,3583.9,1.545]
[1733238028129,0.96413607,3584.7,3584.1,0.18548839]
[1733238028288,0.96413607,3584.7,3584.6,1.5624]
[1733238028803,1.44598199,3584.8,3584.6,1.5624]
[1733238029482,1.44598199,3584.8,3584.7,0.18548839]
[1733238029677,3.0,3585.2,3584.7,0.18548839]
[1733238029905,2.78947,3584.9,3584.6,1.5624]
[1733238030104,0.55718884,3585.1,3584.7,0.18548839]
[1733238030422,1.16408998,3585.4,3585.0,0.18548839]
[1733238030627,1.16408998,3585.4,3585.3,0.18548839]
[1733238030943,1.16408998,3585.4,3585.3,2.97464839]
[1733238031122,1.16408998,3585.4,3585.3,0.18548839]
[1733238031708,2.32291909,3585.7,3585.6,0.18548839]
[1733238032084,2.91048692,3585.9,3585.8,0.18548839]
[1733238032282,2.91048692,3585.9,3585.6,0.18548839]
[1733238032640,3.43382752,3585.9,3585.4,0.18548839]
[1733238032798,2.32291909,3586.0,3585.2,1.5571]
[1733238032978,2.32291909,3586.0,3585.1,0.18548839]
[1733238033181,2.78912,3585.4,3584.9,0.18548839]
[1733238033419,1.6299,3585.9,3585.1,0.18548839]
[1733238033602,1.6299,3585.9,3584.8,1.5304]
[1733238033603,2.32291909,3586.0,3585.5,0.18548839]
[1733238033814,2.32291909,3586.0,3585.8,0.18548839]
[1733238034498,2.32291909,3586.0,3585.8,0.63430723]
[1733238034827,2.32291909,3586.0,3585.8,0.18548839]
[1733238034995,2.32291909,3586.0,3585.9,2.7887]
[1733238035191,2.32291909,3586.0,3585.9,4.4449]
[1733238036184,2.32291909,3586.0,3585.9,7.4449]
[1733238037012,0.55207544,3587.3,3586.5,4.3712]
[1733238037249,0.55207544,3587.3,3587.0,0.18548839]
[1733238037379,0.55207544,3587.3,3586.7,0.18548839]
[1733238037580,0.63395954,3587.2,3586.7,0.18548839]
[1733238037820,0.55207544,3587.3,3587.0,0.18548839]
[1733238038033,0.55207544,3587.3,3587.2,0.18548839]
[1733238038344,0.14525419,3587.7,3587.2,0.18548839]
[1733238038480,1.16567477,3587.9,3587.6,0.18548839]
[1733238038999,1.16567477,3587.9,3587.5,1.5018]
[1733238039000,1.16567477,3587.9,3587.8,0.18548839]
[1733238039183,1.5316,3589.1,3588.4,0.18548839]
[1733238039383,0.15316,3589.0,3588.7,0.18548839]
[1733238039578,4.3175,3589.5,3588.7,0.18548839]
[1733238040192,4.3175,3589.5,3587.3,3.3]
[1733238040193,0.14538024,3589.6,3589.5,0.18548839]
[1733238040394,1.5913,3590.0,3589.3,0.18548839]
[1733238040395,0.54497434,3590.0,3589.3,0.18548839]
[1733238040583,0.54877129,3590.3,3589.9,0.18548839]
[1733238043030,0.158333,3590.7,3590.1,0.18548839]
[1733238043231,2.7852,3590.5,3590.1,0.18548839]
[1733238043383,0.73333611,3590.6,3590.1,0.18548839]
[1733238043590,0.158333,3590.7,3590.5,0.18548839]
[1733238044024,0.158333,3590.7,3590.6,0.02784759]
[1733238044271,0.158333,3590.7,3590.6,1.5127]
[1733238045670,0.158333,3590.7,3590.6,4.39774]
[1733238045848,0.158333,3590.7,3590.6,1.6127]
[1733238046021,0.158333,3590.7,3590.6,2.5035542]
[1733238046421,0.158333,3590.7,3590.6,5.2885942]
[1733238046655,0.158333,3590.7,3590.6,2.5035542]
[1733238047059,0.158333,3590.7,3590.6,2.4035542]
[1733238047264,0.158333,3590.7,3590.6,1.5127]
[1733238047918,0.158333,3590.7,3590.6,1.54054565]
[1733238048126,0.158333,3590.7,3590.6,1.5127]
[1733238048521,0.158333,3590.7,3590.6,1.69818839]
[1733238048951,0.158333,3590.7,3590.6,1.7260311]
[1733238049130,0.158333,3590.7,3590.6,2.11863421]
[1733238049330,0.158333,3590.7,3590.6,1.8907915]
[1733238049861,0.158333,3590.7,3590.6,1.69818839]
[1733238050224,0.158333,3590.7,3590.6,0.18548839]
[1733238050620,0.158333,3590.7,3590.5,0.18548839]
[1733238050827,0.158333,3590.7,3590.3,0.18548839]
[1733238051023,0.55,3590.4,3590.1,0.21348839]
[1733238051311,2.78521,3590.4,3590.2,0.18548839]
[1733238051478,3.33505,3590.6,3590.2,0.21348839]
[1733238051628,0.158333,3590.7,3590.6,0.18548839]
[1733238053025,0.55,3590.6,3590.2,0.028]
[1733238053225,0.55,3590.6,3590.4,0.18548839]
[1733238053459,2.943373,3590.7,3590.4,0.21348839]
[1733238053637,0.2948373,3590.6,3590.4,0.21348839]
[1733238053845,0.158333,3590.7,3590.4,0.21348839]
[1733238054628,0.158333,3590.7,3590.4,0.028]
[1733238054827,2.78505,3590.6,3590.4,0.028]
[1733238055131,2.78505,3590.6,3590.4,0.21348839]
[1733238055300,0.55,3590.6,3590.4,0.028]
[1733238055591,3.6844463,3590.5,3590.4,0.028]
[1733238055753,8.2181463,3590.5,3590.4,0.028]
[1733238056159,2.78543,3590.1,3588.9,0.18548839]
[1733238056350,2.78591,3589.5,3589.3,0.18548839]
[1733238056555,2.78574,3589.7,3589.3,0.18548839]
[1733238056794,0.55,3589.5,3589.3,0.18548839]
[1733238057305,3.0,3590.4,3589.6,0.18548839]
[1733238057581,0.55,3590.0,3589.6,0.18548839]
[1733238057739,0.55,3590.2,3589.6,0.18548839]
[1733238057941,3.55,3590.2,3589.6,0.18548839]
[1733238058271,0.158333,3590.7,3590.4,0.18548839]
[1733238059538,0.158333,3590.7,3590.6,0.18548839]
[1733238060769,0.158333,3590.7,3590.4,0.18548839]
[1733238061442,0.158333,3590.7,3590.0,0.18548839]
[1733238061443,3.33512,3590.5,3590.0,0.18548839]
[1733238061650,0.73759652,3590.4,3590.0,0.18548839]
[1733238062203,0.158333,3590.7,3589.3,1.6136]
[1733238062204,0.158333,3590.7,3590.6,0.18548839]
[1733238063110,0.158333,3590.7,3590.6,4.61562839]
[1733238063308,0.158333,3590.7,3590.6,4.64346872]
[1733238063683,0.158333,3590.7,3590.6,1.83058839]
[1733238065234,0.158333,3590.7,3590.6,4.64346907]
[1733238065508,0.158333,3590.7,3590.6,5.3884973]
[1733238065711,0.158333,3590.7,3590.6,5.5884973]
[1733238065917,0.158333,3590.7,3590.6,5.6884973]
[1733238068270,0.158333,3590.7,3590.6,2.6034573]
[1733238068514,0.158333,3590.7,3590.6,1.83058839]
[1733238069208,0.158333,3590.7,3590.6,0.18548839]
[1733238070573,0.55,3590.6,3590.4,0.18548839]
[1733238070772,0.55,3590.6,3590.4,0.21348839]
[1733238071116,0.158333,3590.7,3590.6,0.18548839]
[1733238071312,0.158333,3590.7,3590.6,8.90317885]
[1733238071497,0.158333,3590.7,3590.6,10.43281873]
[1733238071696,0.158333,3590.7,3590.6,6.12066827]
[1733238072015,0.128333,3590.7,3590.6,6.12066827]
[1733238072374,0.128333,3590.7,3590.6,6.02066827]
[1733238072573,0.128333,3590.7,3590.6,6.12066827]
[1733238072806,0.128333,3590.7,3590.6,6.01956827]
[1733238073011,0.128333,3590.7,3590.6,5.91956827]
[1733238073711,0.005,3590.9,3590.8,3.06927839]
[1733238074025,2.78327,3592.9,3592.4,0.08438839]
[1733238074309,3.34459778,3593.1,3592.4,0.11238839]
[1733238074520,2.78346,3592.7,3592.4,0.11238839]
[1733238074824,2.78323,3593.0,3592.4,0.028]
[1733238074974,7.3119,3593.0,3592.4,0.028]
[1733238075175,3.33357,3592.5,3592.4,0.028]
[1733238075681,2.78343,3592.7,3592.4,0.028]
[1733238075866,4.21854682,3592.9,3592.4,0.028]
[1733238076070,1.5287,3593.0,3592.4,0.028]
[1733238076273,3.0,3592.7,3592.4,0.028]
[1733238076768,1.5287,3593.0,3592.4,0.028]
[1733238076966,3.0,3592.7,3592.4,0.028]
[1733238077167,3.33357,3592.5,3592.4,0.028]
[1733238077377,8.540466,3592.5,3592.4,0.028]
[1733238079386,9.10054561,3592.5,3592.4,0.028]
[1733238080594,0.55,3592.3,3591.3,0.08438839]
[1733238080796,0.55,3591.1,3590.8,0.08438839]
[1733238081109,3.33466,3591.1,3590.8,0.08438839]
[1733238081308,1.317059,3591.1,3590.8,0.08438839]
[1733238081640,1.317059,3591.1,3591.0,0.08438839]
[1733238081641,0.55,3591.1,3591.0,0.08438839]
[1733238081841,0.55,3591.7,3591.4,0.08438839]
[1733238081993,0.55,3591.8,3591.4,0.08438839]
[1733238082340,3.33414,3591.8,3590.8,1.5833]
[1733238082545,0.55,3591.5,3591.1,0.08438839]
[1733238082896,2.78414,3591.8,3591.1,0.08438839]
[1733238082897,0.55,3591.8,3591.1,0.08438839]
[1733238083237,2.7843,3591.6,3591.1,0.08438839]
[1733238083448,3.0,3591.6,3591.1,0.08438839]
[1733238083735,3.0,3591.6,3590.6,0.08438839]
[1733238083946,2.78475,3591.0,3590.5,0.08438839]
[1733238084095,1.532,3591.0,3589.6,2.03549337]
[1733238084301,2.78509,3590.6,3589.8,0.08438839]
[1733238084601,0.55,3590.4,3589.8,0.08438839]
[1733238084801,0.55,3590.7,3589.8,0.08438839]
[1733238085034,0.633494,3590.6,3589.8,0.08438839]
[1733238085245,3.418554,3590.6,3590.2,0.08438839]
[1733238085636,3.418544,3590.6,3590.2,0.08438839]
[1733238085957,2.78565,3589.9,3589.6,0.58488176]
[1733238086108,2.78567,3589.8,3589.6,0.50049337]
[1733238086312,2.78567,3589.8,3589.3,0.08438839]
[1733238086313,0.278567,3589.7,3589.1,0.08438839]
[1733238086555,2.7863,3589.0,3588.8,0.08438839]
[1733238086856,3.33601,3589.4,3588.8,0.08438839]
[1733238087007,3.0,3589.5,3589.0,0.08438839]
[1733238087208,3.0,3589.5,3588.7,1.6409]
[1733238087209,2.78543,3590.1,3589.4,0.08438839]
[1733238087408,3.0,3590.4,3588.7,1.6409]
[1733238087409,2.78525,3590.4,3589.9,0.08438839]
[1733238087656,0.4919944,3590.4,3589.9,0.08438839]
[1733238087957,3.9660106,3590.9,3588.7,1.6409]
[1733238087958,1.5252,3591.2,3590.1,0.08438839]
[1733238088168,1.5252,3591.2,3590.3,0.08438839]
[1733238088169,0.55352086,3591.0,3590.3,0.08438839]
[1733238088317,1.51522359,3591.5,3590.6,0.08438839]
[1733238088519,1.70487428,3591.5,3590.8,0.08438839]
[1733238088741,1.16022359,3591.8,3591.0,0.08438839]
[1733238088993,0.83129943,3591.8,3591.0,0.08438839]
[1733238089159,1.42009446,3591.9,3591.2,0.08438839]
[1733238089315,1.16022359,3592.0,3591.4,0.08438839]
[1733238089515,1.16022359,3592.0,3591.6,0.08438839]
[1733238089709,1.16022359,3592.0,3590.7,1.6439]
[1733238089710,1.82485797,3592.0,3591.3,0.08438839]
[1733238089923,1.16022359,3592.0,3591.5,0.08438839]
[1733238090123,3.8660106,3592.3,3591.3,0.08438839]
[1733238090124,1.16022359,3592.2,3591.3,0.08438839]
[1733238090358,2.78414,3591.8,3590.7,1.6439]
[1733238090569,0.96191516,3592.2,3591.2,0.08438839]
[1733238090570,1.6273,3591.9,3591.2,0.08438839]
[1733238090850,1.16022359,3592.0,3591.5,0.08438839]
[1733238091062,0.96203809,3591.9,3591.5,0.08438839]
[1733238091244,0.94478236,3592.0,3591.5,0.08438839]
[1733238091415,3.72876236,3592.0,3591.5,0.08438839]
[1733238091614,3.0,3591.9,3591.5,0.08438839]
[1733238091810,0.94478236,3592.0,3591.5,0.08438839]
[1733238092115,3.0,3591.8,3591.3,0.08438839]
[1733238092517,5.78413,3591.8,3591.3,0.08438839]
[1733238092740,0.96292913,3591.9,3591.1,0.08438839]
[1733238092741,2.7843,3591.6,3591.1,0.08438839]
[1733238092938,0.96292913,3591.9,3591.5,0.08438839]
[1733238093161,4.16022359,3592.1,3591.5,0.08438839]
[1733238093481,4.16022359,3592.1,3591.9,0.08438839]
[1733238093683,1.16022359,3592.1,3591.9,0.08438839]
[1733238094197,1.16022359,3592.1,3591.8,1.5674]
[1733238094487,1.16022359,3592.1,3591.8,1.65178839]
[1733238095067,1.16022359,3592.1,3592.0,0.08438839]
[1733238095789,1.78304961,3592.1,3591.7,0.08438839]
[1733238096293,0.62282602,3592.1,3591.7,0.08438839]
[1733238096447,3.40674602,3592.1,3591.7,0.08438839]
[1733238096655,0.55,3592.0,3591.5,0.08438839]
[1733238097064,2.78404,3591.9,3591.5,0.08438839]
[1733238097263,0.3956866,3591.8,3590.9,1.6198]
[1733238097467,0.55,3591.7,3591.1,0.08438839]
[1733238097666,2.78436,3591.5,3590.9,1.70418839]
[1733238097867,3.33421,3591.7,3590.9,1.70418839]
[1733238098077,2.78438,3591.5,3590.9,1.70418839]
[1733238098409,0.333438,3591.4,3590.9,1.70418839]
[1733238098891,0.55,3591.7,3590.7,0.08438839]
[1733238098892,2.78451,3591.3,3590.7,0.08438839]
[1733238099091,2.78451,3591.3,3590.3,2.21721455]
[1733238099092,0.55,3591.5,3590.3,1.6611]
[1733238099388,3.0,3591.4,3590.6,0.08438839]
[1733238099593,2.09931468,3591.6,3591.0,0.08438839]
[1733238099795,2.78444,3591.4,3591.0,0.08438839]
[1733238099966,0.48837547,3591.3,3590.8,0.08438839]
[1733238100162,3.0,3591.3,3590.8,0.08438839]
[1733238100350,0.55,3591.5,3590.6,0.08438839]
[1733238100548,2.78454,3591.3,3590.6,0.08438839]
[1733238100752,0.55,3591.5,3590.6,0.08438839]
[1733238100954,3.55,3591.5,3590.6,0.08438839]
[1733238101150,0.55,3591.3,3590.6,0.08438839]
[1733238101599,3.0,3591.2,3590.6,0.08438839]
[1733238102192,6.33453,3591.3,3590.6,0.08438839]
[1733238102506,1.086434,3591.4,3591.0,0.08438839]
[1733238102992,0.95525735,3591.8,3590.0,0.02784653]
[1733238102993,0.3956866,3591.8,3591.5,0.08438839]
[1733238103805,0.3956866,3591.8,3591.0,1.6479]
[1733238103806,0.3956866,3591.8,3591.7,0.08438839]
[1733238104094,1.16022359,3592.0,3591.7,0.08438839]
[1733238104296,2.78399,3592.0,3591.4,0.08438839]
[1733238104520,3.74718242,3592.0,3591.4,0.08438839]
[1733238104654,4.90740601,3592.0,3591.4,0.08438839]
[1733238104859,2.78407,3591.9,3591.4,0.08438839]
[1733238105154,2.78427,3591.6,3590.7,0.08438839]
[1733238105360,0.55,3591.5,3590.7,0.08438839]
[1733238105595,0.55,3591.3,3590.7,0.08438839]
[1733238105809,1.16022359,3591.6,3591.1,0.08438839]
[1733238106008,1.16022359,3591.8,3591.3,1.73298839]
[1733238106235,1.28509127,3591.8,3591.3,1.73298839]
[1733238106556,1.28509127,3591.8,3591.3,0.08438839]
[1733238106800,2.78419,3591.7,3591.1,0.08438839]
[1733238106998,4.28509127,3591.8,3590.9,1.68628839]
[1733238107300,2.78457,3591.3,3590.9,0.08438839]
[1733238107498,3.55,3591.7,3590.9,0.08438839]
[1733238107683,0.55,3591.5,3590.9,0.08438839]
[1733238107999,0.55,3591.5,3590.7,0.08438839]
[1733238108159,2.78462,3591.2,3590.3,0.08438839]
[1733238108361,3.33462,3591.2,3590.3,0.08438839]
[1733238108559,0.55,3590.9,3590.3,0.08438839]
[1733238108760,3.0,3590.7,3590.3,0.08438839]
[1733238108999,2.78498,3590.7,3590.1,1.591]
[1733238109292,0.633466,3590.8,3590.1,1.591]
[1733238109293,3.418376,3590.8,3590.3,0.08438839]
[1733238109456,0.55,3591.1,3590.3,0.08438839]
[1733238109656,3.55,3590.9,3590.3,0.08438839]
[1733238110101,0.54415622,3591.3,3590.6,0.08438839]
[1733238110259,3.0,3591.3,3590.6,0.08438839]
[1733238110453,3.0,3591.3,3589.3,0.02785185]
[1733238110454,2.32044718,3591.5,3591.2,0.08438839]
[1733238111665,2.32044718,3591.5,3591.4,0.08438839]
[1733238112921,2.32044718,3591.5,3591.4,4.38710839]
[1733238113080,2.32044718,3591.5,3591.4,4.82581923]
[1733238113819,1.16022359,3591.7,3591.6,0.08438839]
[1733238114135,1.16022359,3592.8,3591.6,2.86865839]
[1733238114408,0.96329414,3592.7,3591.6,2.89664839]
[1733238114568,3.0,3592.8,3591.6,2.89664839]
[1733238114768,0.96314757,3592.7,3592.0,0.08438839]
[1733238114996,4.16022359,3592.9,3592.0,0.11238839]
[1733238115179,3.0,3592.7,3592.0,0.11238839]
[1733238115395,3.33387,3592.2,3592.0,0.028]
[1733238115596,5.78388,3592.1,3592.0,0.028]
[1733238115803,4.0195573,3592.1,3592.0,0.028]
[1733238116816,7.3534373,3592.1,3592.0,0.028]
[1733238117577,9.92293053,3592.1,3592.0,0.028]
[1733238117915,12.78821769,3592.1,3592.0,0.028]
[1733238118121,5.40796388,3592.1,3592.0,0.028]
[1733238118287,3.0,3592.2,3592.0,0.028]
[1733238118677,3.86169301,3592.2,3592.0,0.028]
[1733238119018,3.33388,3592.1,3592.0,0.028]
[1733238119226,6.33388,3592.1,3592.0,0.028]
[1733238119435,7.46945966,3592.1,3592.0,0.028]
[1733238119580,8.43264236,3592.1,3592.0,0.028]
[1733238120014,9.87751014,3592.1,3592.0,0.028]
[1733238120211,8.43264236,3592.1,3592.0,0.028]
[1733238120420,8.4327212,3592.1,3592.0,0.028]
[1733238120828,5.4327212,3592.1,3592.0,0.028]
[1733238120991,2.6488412,3592.1,3592.0,0.028]
[1733238121195,1.70460432,3592.5,3592.0,0.028]
[1733238121413,1.16022359,3592.5,3592.0,0.028]
[1733238121811,2.78374,3592.3,3592.0,0.028]
[1733238122017,1.16022359,3592.5,3592.0,0.11238839]
[1733238122215,1.16022359,3592.7,3592.2,0.08438839]
[1733238122424,4.76058718,3592.8,3592.2,1.66228839]
[1733238122627,3.86169301,3592.6,3592.2,0.028]
[1733238122812,2.51069924,3592.5,3592.2,0.028]
[1733238123137,5.78373,3592.3,3592.2,0.028]
[1733238123335,8.38879498,3592.3,3592.2,0.028]
[1733238123629,9.90202282,3592.3,3592.2,0.028]
[1733238123834,12.11757666,3592.3,3592.2,0.028]
[1733238124334,2.12345143,3592.3,3592.2,0.11238839]
[1733238124499,3.94395359,3592.3,3592.2,0.028]
[1733238124688,4.90714089,3592.3,3592.2,0.028]
[1733238124888,6.35194668,3592.3,3592.2,0.028]
[1733238125109,6.40954089,3592.3,3592.2,0.028]
[1733238125439,8.71861273,3592.3,3592.2,0.028]
[1733238125589,11.10838914,3592.3,3592.2,0.028]
[1733238126532,1.7735663,3592.3,3592.2,0.028]
[1733238126735,4.2969173,3592.3,3592.2,0.028]
[1733238127039,4.55730908,3592.3,3592.2,0.028]
[1733238127336,0.9631873,3592.3,3592.2,0.028]
[1733238127705,4.06078256,3592.5,3592.3,0.08438839]
[1733238127920,4.06078256,3592.5,3592.3,0.11238839]
[1733238128926,4.06078256,3592.5,3592.3,0.028]
[1733238129519,5.78365,3592.4,3592.3,0.028]
[1733238129689,6.33365,3592.4,3592.3,0.028]
[1733238130433,8.10066742,3592.4,3592.3,0.028]
[1733238130633,12.24858967,3592.4,3592.3,0.028]
[1733238130800,14.37000966,3592.4,3592.3,0.028]
[1733238131500,14.55618238,3592.4,3592.3,0.028]
[1733238131702,14.55607525,3592.4,3592.3,0.028]
[1733238131903,14.37698516,3592.4,3592.3,0.028]
[1733238132146,14.55622537,3592.4,3592.3,0.028]
[1733238132445,16.87667255,3592.4,3592.3,0.028]
[1733238132735,10.19966105,3592.4,3592.3,0.028]
[1733238133590,10.38020936,3592.4,3592.3,0.028]
[1733238133929,5.19123687,3592.4,3592.3,0.028]
[1733238134348,6.94055159,3592.4,3592.3,0.028]
[1733238134528,7.77209858,3592.4,3592.3,0.028]
[1733238134725,9.85663364,3592.4,3592.3,0.028]
[1733238134915,10.01480574,3592.4,3592.3,0.028]
[1733238135329,6.94082356,3592.4,3592.3,0.028]
[1733238135942,5.19123687,3592.4,3592.3,0.028]
[1733238136151,6.94081471,3592.4,3592.3,0.028]
[1733238136448,7.49081471,3592.4,3592.3,0.028]
[1733238136603,2.40758687,3592.4,3592.3,0.028]
[1733238136804,0.96303475,3592.4,3592.3,0.11238839]
[1733238137107,2.40758687,3592.4,3592.3,0.11238839]
[1733238137330,0.96303475,3592.4,3592.3,0.028]
[1733238137548,3.57387947,3592.4,3592.3,0.11238839]
[1733238137703,3.57383955,3592.4,3592.3,0.11238839]
[1733238137898,2.40758687,3592.4,3592.3,0.11238839]
[1733238138254,0.96426216,3592.4,3592.3,0.27997723]
[1733238138432,1.44455212,3592.5,3592.3,0.27997723]
[1733238139162,1.16625268,3592.6,3592.3,0.27997723]
[1733238139163,2.61260287,3592.6,3592.5,0.08438839]
[1733238139456,2.13046102,3592.6,3592.5,0.11238839]
[1733238139626,3.57681121,3592.6,3592.5,0.11238839]
[1733238139954,2.13046102,3592.6,3592.5,0.11238839]
[1733238140254,3.57681121,3592.6,3592.5,0.11238839]
[1733238140461,2.13046102,3592.6,3592.5,0.11238839]
[1733238140626,3.83747038,3592.6,3592.5,0.11238839]
[1733238140953,2.6712177,3592.6,3592.5,0.11238839]
[1733238141363,6.0047077,3592.6,3592.5,0.028]
[1733238141518,3.2212177,3592.6,3592.5,0.028]
[1733238142367,4.97074973,3592.6,3592.5,0.028]
[1733238142592,4.38725344,3592.6,3592.5,0.028]
[1733238142741,2.9153807,3593.1,3592.5,0.028]
[1733238142742,5.32620345,3593.3,3593.2,2.78303]
[1733238142936,2.9146028,3594.1,3594.0,2.86679839]
[1733238143163,2.9146028,3594.1,3594.0,4.44249839]
[1733238143478,0.158333,3594.4,3594.3,0.08438839]
[1733238145063,0.75,3595.1,3594.3,0.08438839]
[1733238145064,0.75,3595.1,3595.0,1.61938839]
[1733238145246,0.75,3595.1,3595.0,4.42902839]
[1733238145571,0.75,3595.1,3595.0,5.53628253]
[1733238145765,0.035,3595.7,3595.6,2.86555839]
[1733238146075,0.0079,3596.0,3595.6,4.48225839]
[1733238146295,0.158333,3598.0,3597.4,0.579]
[1733238146588,0.158333,3598.0,3597.7,0.08438839]
[1733238146737,0.158333,3598.0,3597.7,0.11238839]
[1733238147490,2.77942,3597.9,3597.7,0.11238839]
[1733238147640,0.2937753,3597.8,3597.7,0.11238839]
[1733238148250,0.2937753,3597.8,3597.7,0.028]
[1733238148670,3.0732453,3597.8,3597.7,0.028]
[1733238148857,3.624267,3597.8,3597.7,0.028]
[1733238149483,0.844797,3597.8,3597.7,0.11238839]
[1733238149698,3.13429294,3598.5,3597.7,0.11238839]
[1733238149699,0.14501802,3599.1,3598.7,0.45114489]
[1733238150014,0.14501802,3599.1,3598.9,0.08438839]
[1733238150221,0.69333715,3600.0,3599.9,0.08438839]